[Event "Kadrioru MK Open B"]
[Site "Tallinn, Paul Keres Chess House, Estonia"]
[Date "2023.02.11"]
[Round "2.1"]
[White "Kais, Kristofer"]
[Black "Vorobyov, Radmir"]
[Result "0-1"]
[TimeControl "60 minutes with 30 second increment from move 1"]
[WhiteElo "1126"]
[BlackElo "1573"]

1. Nf3 {

[%clk 01:00:52]

} {

[%emt 00:00:07]

} Nf6 {

[%clk 01:00:53]

} {

[%emt 00:00:08]

} 2. g3 {

[%clk 01:00:57]

} {

[%emt 00:00:24]

} g6 {

[%clk 01:00:51]

} {

[%emt 00:00:32]

} 3. Bg2 {

[%clk 01:01:12]

} {

[%emt 00:00:15]

} d5 {

[%clk 01:01:01]

} {

[%emt 00:00:20]

} 4. d3 {

[%clk 01:00:39]

} {

[%emt 00:01:02]

} Bg7 {

[%clk 01:00:54]

} {

[%emt 00:00:37]

} 5. O-O {

[%clk 01:00:15]

} {

[%emt 00:00:53]

} c5 {

[%clk 01:00:19]

} {

[%emt 00:01:06]

} 6. Re1 {

[%clk 00:56:01]

} {

[%emt 00:04:43]

} O-O {

[%clk 01:00:29]

} {

[%emt 00:00:21]

} 7. Nbd2 {

[%clk 00:55:21]

} {

[%emt 00:01:09]

} Nc6 {

[%clk 00:56:38]

} {

[%emt 00:04:22]

} 8. e4 {

[%clk 00:53:34]

} {

[%emt 00:02:16]

} dxe4 {

[%clk 00:55:12]

} {

[%emt 00:01:57]

} 9. Nxe4 {

[%clk 00:52:33]

} {

[%emt 00:01:30]

} Nxe4 {

[%clk 00:54:40]

} {

[%emt 00:01:03]

} 10. dxe4 {

[%clk 00:51:11]

} {

[%emt 00:01:51]

} Bg4 {

[%clk 00:53:38]

} {

[%emt 00:01:33]

} 11. Qxd8 {

[%clk 00:47:44]

} {

[%emt 00:03:56]

} Raxd8 {

[%clk 00:53:08]

} {

[%emt 00:01:01]

} 12. c3 {

[%clk 00:46:47]

} {

[%emt 00:01:27]

} b5 {

[%clk 00:46:12]

} {

[%emt 00:07:26]

} 13. Be3 {

[%clk 00:31:44]

} {

[%emt 00:15:32]

} c4 {

[%clk 00:34:55]

} {

[%emt 00:11:48]

} 14. h3 {

[%clk 00:24:41]

} {

[%emt 00:07:31]

} Bxf3 {

[%clk 00:27:28]

} {

[%emt 00:07:58]

} 15. Bxf3 {

[%clk 00:24:52]

} {

[%emt 00:00:20]

} b4 {

[%clk 00:27:30]

} {

[%emt 00:00:28]

} 16. cxb4 {

[%clk 00:17:20]

} {

[%emt 00:08:00]

} Nxb4 {

[%clk 00:25:47]

} {

[%emt 00:02:14]

} 17. Rac1 {

[%clk 00:16:58]

} {

[%emt 00:00:51]

} Nd3 {

[%clk 00:25:58]

} {

[%emt 00:00:20]

} 18. Red1 {

[%clk 00:10:10]

} {

[%emt 00:07:15]

} Nxc1 {

[%clk 00:26:03]

} {

[%emt 00:00:27]

} 19. Rxc1 {

[%clk 00:10:20]

} {

[%emt 00:00:20]

} Rc8 {

[%clk 00:21:57]

} {

[%emt 00:04:37]

} 20. Rc2 {

[%clk 00:08:04]

} {

[%emt 00:02:46]

} a5 {

[%clk 00:17:57]

} {

[%emt 00:04:31]

} 21. Bd2 {

[%clk 00:05:18]

} {

[%emt 00:03:15]

} Rb8 {

[%clk 00:14:05]

} {

[%emt 00:04:23]

} 22. Rxc4 {

[%clk 00:02:19]

} {

[%emt 00:03:28]

} Rxb2 {

[%clk 00:14:14]

} {

[%emt 00:00:21]

} 23. Bxa5 {

[%clk 00:02:23]

} {

[%emt 00:00:26]

} Rxa2 {

[%clk 00:14:30]

} {

[%emt 00:00:14]

} 24. Bc3 {

[%clk 00:00:54]

} {

[%emt 00:01:58]

} Bxc3 {

[%clk 00:14:42]

} {

[%emt 00:00:19]

} 25. Rxc3 {

[%clk 00:01:13]

} {

[%emt 00:00:11]

} Rb8 {

[%clk 00:13:54]

} {

[%emt 00:01:18]

} 26. Bg4 {

[%clk 00:00:56]

} {

[%emt 00:00:46]

} Rbb2 {

[%clk 00:12:27]

} {

[%emt 00:01:59]

} 27. Rf3 {

[%clk 00:00:53]

} {

[%emt 00:00:32]

} Rd2 {

[%clk 00:09:27]

} {

[%emt 00:03:31]

} 28. h4 {

[%clk 00:00:45]

} {

[%emt 00:00:38]

} h5 {

[%clk 00:09:39]

} {

[%emt 00:00:18]

} 29. Bh3 {

[%clk 00:00:58]

} {

[%emt 00:00:16]

} Re2 {

[%clk 00:08:59]

} {

[%emt 00:01:12]

} 30. Rf4 {

[%clk 00:00:46]

} {

[%emt 00:00:41]

} e5 {

[%clk 00:09:04]

} {

[%emt 00:00:26]

} 31. Rf3 {

[%clk 00:00:37]

} {

[%emt 00:00:39]

} Rxe4 {

[%clk 00:09:21]

} {

[%emt 00:00:13]

} 32. Bg2 {

[%clk 00:00:35]

} {

[%emt 00:00:32]

} Ree2 {

[%clk 00:07:51]

} {

[%emt 00:02:00]

} 33. Bf1 {

[%clk 00:00:39]

} {

[%emt 00:00:26]

} Re1 {

[%clk 00:08:05]

} {

[%emt 00:00:16]

} 34. Kg2 {

[%clk 00:00:53]

} {

[%emt 00:00:16]

} e4 {

[%clk 00:07:54]

} {

[%emt 00:00:41]

} 35. Rf6 {

[%clk 00:00:35]

} {

[%emt 00:00:48]

} e3 {

[%clk 00:07:28]

} {

[%emt 00:00:56]

} 36. Bc4 {

[%clk 00:00:32]

} {

[%emt 00:00:33]

} Rxf2+ {

[%clk 00:07:47]

} {

[%emt 00:00:11]

} 37. Rxf2 {

[%clk 00:00:40]

} {

[%emt 00:00:22]

} exf2 {

[%clk 00:08:11]

} {

[%emt 00:00:06]

} 38. Kxf2 {

[%clk 00:00:57]

} {

[%emt 00:00:12]

} Rc1 {

[%clk 00:08:30]

} {

[%emt 00:00:11]

} 39. Bd3 {

[%clk 00:00:53]

} {

[%emt 00:00:32]

} Kg7 {

[%clk 00:08:29]

} {

[%emt 00:00:34]

} 40. Ke3 {

[%clk 00:00:51]

} {

[%emt 00:00:31]

} Kf6 {

[%clk 00:08:05]

} {

[%emt 00:00:54]

} 41. Kf4 {

[%clk 00:00:48]

} {

[%emt 00:00:32]

} Rc3 {

[%clk 00:07:28]

} {

[%emt 00:01:08]

} 42. Be2 {

[%clk 00:00:55]

} {

[%emt 00:00:21]

} Ra3 {

[%clk 00:07:38]

} {

[%emt 00:00:22]

} 43. Bb5 {

[%clk 00:00:43]

} {

[%emt 00:00:41]

} Rb3 {

[%clk 00:07:18]

} {

[%emt 00:00:51]

} 44. Bc6 {

[%clk 00:00:35]

} {

[%emt 00:00:38]

} Rb4+ {

[%clk 00:05:38]

} {

[%emt 00:02:10]

} 45. Be4 {

[%clk 00:00:35]

} {

[%emt 00:00:30]

} Ke6 {

[%clk 00:05:19]

} {

[%emt 00:00:49]

} 46. Ke3 {

[%clk 00:00:38]

} {

[%emt 00:00:23]

} Ke5 {

[%clk 00:04:54]

} {

[%emt 00:00:58]

} 47. Bc2 {

[%clk 00:00:46]

} {

[%emt 00:00:21]

} f5 {

[%clk 00:05:05]

} {

[%emt 00:00:19]

} 48. Kf3 {

[%clk 00:00:45]

} {

[%emt 00:00:31]

} Rc4 {

[%clk 00:05:10]

} {

[%emt 00:00:26]

} 49. Bd3 {

[%clk 00:00:47]

} {

[%emt 00:00:27]

} Rc3 {

[%clk 00:04:09]

} {

[%emt 00:01:33]

} 50. Ke3 {

[%clk 00:01:06]

} {

[%emt 00:00:11]

} Rxd3+ {

[%clk 00:03:52]

} {

[%emt 00:00:47]

} 51. Kxd3 {

[%clk 00:01:16]

} {

[%emt 00:00:19]

} f4 {

[%clk 00:04:17]

} {

[%emt 00:00:05]

} 52. Ke2 {

[%clk 00:01:11]

} {

[%emt 00:00:33]

} fxg3 {

[%clk 00:03:27]

} {

[%emt 00:01:23]

} 53. Kf3 {

[%clk 00:01:22]

} {

[%emt 00:00:18]

} g2 {

[%clk 00:03:41]

} {

[%emt 00:00:16]

} 54. Kxg2 {

[%clk 00:01:41]

} {

[%emt 00:00:11]

} Kf4 {

[%clk 00:04:04]

} {

[%emt 00:00:07]

} 55. Kh3 {

[%clk 00:01:47]

} {

[%emt 00:00:23]

} Kf3 {

[%clk 00:04:28]

} {

[%emt 00:00:08]

} 56. Kh2 {

[%clk 00:02:00]

} {

[%emt 00:00:16]

} Kg4 {

[%clk 00:04:52]

} {

[%emt 00:00:07]

} 57. Kg2 {

[%clk 00:02:05]

} {

[%emt 00:00:24]

} Kxh4 {

[%clk 00:05:17]

} {

[%emt 00:00:05]

} 58. Kh2 {

[%clk 00:02:04]

} {

[%emt 00:00:30]

} g5 {

[%clk 00:05:34]

} {

[%emt 00:00:15]

} 59. Kg2 {

[%clk 00:02:16]

} {

[%emt 00:00:17]

} g4 {

[%clk 00:05:51]

} {

[%emt 00:00:13]

} 60. Kh2 {

[%clk 00:02:33]

} {

[%emt 00:00:12]

} g3+ {

[%clk 00:06:03]

} {

[%emt 00:00:19]

} 61. Kg2 {

[%clk 00:02:37]

} {

[%emt 00:00:26]

} Kg4 {

[%clk 00:06:15]

} {

[%emt 00:00:18]

} 62. Kg1 {

[%clk 00:02:13]

} {

[%emt 00:00:54]

} Kf3 {

[%clk 00:06:08]

} {

[%emt 00:00:37]

} 63. Kh1 {

[%clk 00:02:15]

} {

[%emt 00:00:26]

} g2+ {

[%clk 00:06:24]

} {

[%emt 00:00:15]

} 64. Kg1 {

[%clk 00:02:14]

} {

[%emt 00:00:32]

} h4 {

[%clk 00:06:46]

} {

[%emt 00:00:09]

} 65. Kh2 {

[%clk 00:02:32]

} {

[%emt 00:00:11]

} Kf2 {

[%clk 00:07:00]

} {

[%emt 00:00:17]

} 66. Kh3 {

[%clk 00:02:45]

} {

[%emt 00:00:17]

} g1=Q {

[%clk 00:07:19]

} {

[%emt 00:00:11]

} 67. Kxh4 {

[%clk 00:03:05]

} {

[%emt 00:00:10]

} Kf3 {

[%clk 00:07:40]

} {

[%emt 00:00:09]

} 68. Kh5 {

[%clk 00:03:18]

} {

[%emt 00:00:17]

} Kf4 {

[%clk 00:07:56]

} {

[%emt 00:00:13]

} 69. Kh6 {

[%clk 00:03:38]

} {

[%emt 00:00:10]

} Kf5 {

[%clk 00:08:19]

} {

[%emt 00:00:07]

} 70. Kh7 {

[%clk 00:03:49]

} {

[%emt 00:00:20]

} Kf6 {

[%clk 00:08:40]

} {

[%emt 00:00:08]

} 0-1

[Event "Kadrioru MK Open B"]
[Site "Tallinn, Paul Keres Chess House, Estonia"]
[Date "2023.02.11"]
[Round "3.2"]
[White "Beniosev, Daniel"]
[Black "Gorkov, Kirill"]
[Result "1/2-1/2"]
[TimeControl "60 minutes with 30 second increment from move 1"]
[WhiteElo "1464"]
[BlackElo "1490"]

1. e4 {

[%clk 01:00:48]

} {

[%emt 00:00:11]

} c5 {

[%clk 01:00:56]

} {

[%emt 00:00:05]

} 2. Nf3 {

[%clk 01:01:13]

} {

[%emt 00:00:05]

} Nc6 {

[%clk 01:01:21]

} {

[%emt 00:00:04]

} 3. c3 {

[%clk 01:01:38]

} {

[%emt 00:00:05]

} e6 {

[%clk 01:01:48]

} {

[%emt 00:00:04]

} 4. d4 {

[%clk 01:02:04]

} {

[%emt 00:00:04]

} cxd4 {

[%clk 01:02:14]

} {

[%emt 00:00:04]

} 5. cxd4 {

[%clk 01:02:30]

} {

[%emt 00:00:04]

} d5 {

[%clk 01:02:41]

} {

[%emt 00:00:03]

} 6. e5 {

[%clk 01:02:46]

} {

[%emt 00:00:13]

} Nge7 {

[%clk 01:03:04]

} {

[%emt 00:00:07]

} 7. Bd3 {

[%clk 01:03:05]

} {

[%emt 00:00:11]

} Nb4 {

[%clk 01:03:08]

} {

[%emt 00:00:26]

} 8. Be2 {

[%clk 01:02:57]

} {

[%emt 00:00:37]

} Nf5 {

[%clk 01:03:30]

} {

[%emt 00:00:08]

} 9. a3 {

[%clk 01:03:19]

} {

[%emt 00:00:08]

} Nc6 {

[%clk 01:03:54]

} {

[%emt 00:00:07]

} 10. Be3 {

[%clk 01:02:09]

} {

[%emt 00:01:39]

} Be7 {

[%clk 01:03:45]

} {

[%emt 00:00:39]

} 11. Qd2 {

[%clk 01:02:27]

} {

[%emt 00:00:12]

} O-O {

[%clk 01:03:55]

} {

[%emt 00:00:20]

} 12. O-O {

[%clk 01:02:39]

} {

[%emt 00:00:18]

} Bd7 {

[%clk 01:04:18]

} {

[%emt 00:00:09]

} 13. Nc3 {

[%clk 01:02:13]

} {

[%emt 00:00:55]

} Rc8 {

[%clk 01:04:24]

} {

[%emt 00:00:25]

} 14. Rac1 {

[%clk 01:02:03]

} {

[%emt 00:00:39]

} Na5 {

[%clk 01:04:36]

} {

[%emt 00:00:19]

} 15. Bd1 {

[%clk 01:01:34]

} {

[%emt 00:00:58]

} Nc4 {

[%clk 01:04:38]

} {

[%emt 00:00:30]

} 16. Qe2 {

[%clk 01:01:56]

} {

[%emt 00:00:07]

} Qb6 {

[%clk 01:04:55]

} {

[%emt 00:00:12]

} 17. Bc2 {

[%clk 00:59:46]

} {

[%emt 00:02:41]

} Nfxe3 {

[%clk 01:02:02]

} {

[%emt 00:03:24]

} 18. fxe3 {

[%clk 01:00:01]

} {

[%emt 00:00:15]

} g6 {

[%clk 01:02:07]

} {

[%emt 00:00:25]

} 19. Rb1 {

[%clk 00:59:48]

} {

[%emt 00:00:42]

} Qc7 {

[%clk 01:02:04]

} {

[%emt 00:00:34]

} 20. Bd3 {

[%clk 00:58:51]

} {

[%emt 00:01:27]

} b6 {

[%clk 00:59:12]

} {

[%emt 00:03:22]

} 21. Rfc1 {

[%clk 00:59:06]

} {

[%emt 00:00:14]

} Qb8 {

[%clk 00:58:46]

} {

[%emt 00:00:57]

} 22. e4 {

[%clk 00:58:40]

} {

[%emt 00:00:55]

} dxe4 {

[%clk 00:58:04]

} {

[%emt 00:01:13]

} 23. Nxe4 {

[%clk 00:56:47]

} {

[%emt 00:02:22]

} Na5 {

[%clk 00:58:01]

} {

[%emt 00:00:34]

} 24. Rxc8 {

[%clk 00:56:49]

} {

[%emt 00:00:28]

} Rxc8 {

[%clk 00:58:14]

} {

[%emt 00:00:18]

} 25. b4 {

[%clk 00:57:13]

} {

[%emt 00:00:05]

} Nb7 {

[%clk 00:57:52]

} {

[%emt 00:00:52]

} 26. h4 {

[%clk 00:56:42]

} {

[%emt 00:01:00]

} Bc6 {

[%clk 00:57:12]

} {

[%emt 00:01:11]

} 27. h5 {

[%clk 00:56:42]

} {

[%emt 00:00:29]

} Rc7 {

[%clk 00:56:51]

} {

[%emt 00:00:52]

} 28. hxg6 {

[%clk 00:55:07]

} {

[%emt 00:02:05]

} hxg6 {

[%clk 00:57:14]

} {

[%emt 00:00:07]

} 29. Kf2 {

[%clk 00:54:53]

} {

[%emt 00:00:43]

} Qc8 {

[%clk 00:56:38]

} {

[%emt 00:01:07]

} 30. Rh1 {

[%clk 00:54:43]

} {

[%emt 00:00:39]

} Bxe4 {

[%clk 00:55:52]

} {

[%emt 00:01:17]

} 31. Qxe4 {

[%clk 00:54:11]

} {

[%emt 00:01:02]

} Qd8 {

[%clk 00:54:30]

} {

[%emt 00:01:52]

} 32. Qg4 {

[%clk 00:54:26]

} {

[%emt 00:00:14]

} Qf8 {

[%clk 00:51:56]

} {

[%emt 00:03:05]

} 33. Rh3 {

[%clk 00:51:37]

} {

[%emt 00:03:19]

} Qg7 {

[%clk 00:51:08]

} {

[%emt 00:01:19]

} 34. Nd2 {

[%clk 00:50:59]

} {

[%emt 00:01:07]

} Nd8 {

[%clk 00:50:52]

} {

[%emt 00:00:46]

} 35. Ne4 {

[%clk 00:49:59]

} {

[%emt 00:01:30]

} Rd7 {

[%clk 00:50:03]

} {

[%emt 00:01:19]

} 36. Qf4 {

[%clk 00:48:24]

} {

[%emt 00:02:03]

} Rxd4 {

[%clk 00:49:41]

} {

[%emt 00:00:54]

} 37. Nf6+ {

[%clk 00:48:43]

} {

[%emt 00:00:11]

} Qxf6 {

[%clk 00:50:02]

} {

[%emt 00:00:09]

} 38. Qxf6 {

[%clk 00:48:32]

} {

[%emt 00:00:41]

} Bxf6 {

[%clk 00:50:27]

} {

[%emt 00:00:06]

} 39. exf6 {

[%clk 00:48:54]

} {

[%emt 00:00:08]

} Nc6 {

[%clk 00:50:24]

} {

[%emt 00:00:33]

} 40. Ke3 {

[%clk 00:49:10]

} {

[%emt 00:00:14]

} Rd6 {

[%clk 00:50:09]

} {

[%emt 00:00:46]

} 41. Rh4 {

[%clk 00:49:06]

} {

[%emt 00:00:33]

} Ne5 {

[%clk 00:50:19]

} {

[%emt 00:00:20]

} 42. Bc2 {

[%clk 00:49:22]

} {

[%emt 00:00:13]

} Rc6 {

[%clk 00:48:53]

} {

[%emt 00:01:57]

} 43. Bb3 {

[%clk 00:48:04]

} {

[%emt 00:01:48]

} Rd6 {

[%clk 00:44:04]

} {

[%emt 00:05:19]

} 44. Ba4 {

[%clk 00:46:36]

} {

[%emt 00:01:58]

} g5 {

[%clk 00:41:05]

} {

[%emt 00:03:29]

} 45. Re4 {

[%clk 00:46:07]

} {

[%emt 00:00:58]

} Rd5 {

[%clk 00:39:48]

} {

[%emt 00:01:47]

} 46. Bb3 {

[%clk 00:45:22]

} {

[%emt 00:01:15]

} Rd3+ {

[%clk 00:40:11]

} {

[%emt 00:00:07]

} 47. Ke2 {

[%clk 00:45:44]

} {

[%emt 00:00:07]

} Rxb3 {

[%clk 00:40:34]

} {

[%emt 00:00:08]

} 48. Rxe5 {

[%clk 00:46:08]

} {

[%emt 00:00:05]

} Rxa3 {

[%clk 00:40:32]

} {

[%emt 00:00:32]

} 49. Rxg5+ {

[%clk 00:46:32]

} {

[%emt 00:00:06]

} Kf8 {

[%clk 00:40:55]

} {

[%emt 00:00:07]

} 50. Kf2 {

[%clk 00:46:56]

} {

[%emt 00:00:05]

} Ra2+ {

[%clk 00:40:20]

} {

[%emt 00:01:05]

} 51. Kf1 {

[%clk 00:46:43]

} {

[%emt 00:00:42]

} a5 {

[%clk 00:39:54]

} {

[%emt 00:00:57]

} 52. Rh5 {

[%clk 00:47:09]

} {

[%emt 00:00:04]

} Ke8 {

[%clk 00:39:20]

} {

[%emt 00:01:05]

} 53. Rh8+ {

[%clk 00:47:24]

} {

[%emt 00:00:15]

} Kd7 {

[%clk 00:39:24]

} {

[%emt 00:00:27]

} 54. Rh7 {

[%clk 00:47:41]

} {

[%emt 00:00:12]

} Kd6 {

[%clk 00:37:58]

} {

[%emt 00:01:56]

} 55. Rxf7 {

[%clk 00:47:40]

} {

[%emt 00:00:31]

} axb4 {

[%clk 00:37:03]

} {

[%emt 00:01:26]

} 56. Rb7 {

[%clk 00:47:47]

} {

[%emt 00:00:23]

} Kc6 {

[%clk 00:36:56]

} {

[%emt 00:00:37]

} 57. Re7 {

[%clk 00:48:10]

} {

[%emt 00:00:07]

} b3 {

[%clk 00:21:12]

} {

[%emt 00:16:15]

} 58. Rxe6+ {

[%clk 00:48:00]

} {

[%emt 00:00:40]

} Kb5 {

[%clk 00:21:17]

} {

[%emt 00:00:25]

} 59. Re5+ {

[%clk 00:48:14]

} {

[%emt 00:00:15]

} Kc4 {

[%clk 00:21:19]

} {

[%emt 00:00:29]

} 60. Re4+ {

[%clk 00:48:33]

} {

[%emt 00:00:11]

} Kc3 {

[%clk 00:19:28]

} {

[%emt 00:02:21]

} 61. Re3+ {

[%clk 00:47:30]

} {

[%emt 00:01:33]

} Kc2 {

[%clk 00:18:48]

} {

[%emt 00:01:11]

} 62. f7 {

[%clk 00:47:17]

} {

[%emt 00:00:43]

} Ra8 {

[%clk 00:18:54]

} {

[%emt 00:00:24]

} 1/2-1/2

[Event "Kadrioru MK Open B"]
[Site "Tallinn, Paul Keres Chess House, Estonia"]
[Date "2023.02.11"]
[Round "3.3"]
[White "Leht, Karl Samuel"]
[Black "Toomast, Nora"]
[Result "1-0"]
[TimeControl "60 minutes with 30 second increment from move 1"]
[WhiteElo "1150"]
[BlackElo "1023"]

1. e4 {

[%clk 00:59:20]

} {

[%emt 00:01:39]

} c5 {

[%clk 01:00:57]

} {

[%emt 00:00:04]

} 2. Nf3 {

[%clk 00:59:37]

} {

[%emt 00:00:13]

} d6 {

[%clk 01:01:22]

} {

[%emt 00:00:05]

} 3. d4 {

[%clk 00:59:59]

} {

[%emt 00:00:07]

} cxd4 {

[%clk 01:01:45]

} {

[%emt 00:00:06]

} 4. Nxd4 {

[%clk 01:00:23]

} {

[%emt 00:00:06]

} Nf6 {

[%clk 01:02:00]

} {

[%emt 00:00:15]

} 5. Nc3 {

[%clk 01:00:34]

} {

[%emt 00:00:20]

} g6 {

[%clk 01:02:12]

} {

[%emt 00:00:18]

} 6. Be3 {

[%clk 00:58:26]

} {

[%emt 00:02:38]

} Bg7 {

[%clk 01:01:21]

} {

[%emt 00:01:21]

} 7. Bc4 {

[%clk 00:55:03]

} {

[%emt 00:03:53]

} e6 {

[%clk 01:01:21]

} {

[%emt 00:00:31]

} 8. Ndb5 {

[%clk 00:54:30]

} {

[%emt 00:01:03]

} Bf8 {

[%clk 01:00:25]

} {

[%emt 00:01:25]

} 9. Bg5 {

[%clk 00:54:20]

} {

[%emt 00:00:40]

} e5 {

[%clk 00:59:44]

} {

[%emt 00:01:11]

} 10. Bxf6 {

[%clk 00:54:25]

} {

[%emt 00:00:26]

} Qxf6 {

[%clk 00:59:55]

} {

[%emt 00:00:19]

} 11. Nc7+ {

[%clk 00:54:39]

} {

[%emt 00:00:16]

} Kd7 {

[%clk 00:59:32]

} {

[%emt 00:00:53]

} 12. Nxa8 {

[%clk 00:54:39]

} {

[%emt 00:00:30]

} b6 {

[%clk 00:59:27]

} {

[%emt 00:00:34]

} 13. Bb5+ {

[%clk 00:54:46]

} {

[%emt 00:00:23]

} Nc6 {

[%clk 00:59:19]

} {

[%emt 00:00:39]

} 14. Bxc6+ {

[%clk 00:54:37]

} {

[%emt 00:00:40]

} Kxc6 {

[%clk 00:59:41]

} {

[%emt 00:00:07]

} 15. Qd5+ {

[%clk 00:54:53]

} {

[%emt 00:00:14]

} Kd7 {

[%clk 00:59:49]

} {

[%emt 00:00:22]

} 16. Qb5+ {

[%clk 00:55:00]

} {

[%emt 00:00:22]

} Kd8 {

[%clk 00:59:18]

} {

[%emt 00:01:01]

} 17. Nxb6 {

[%clk 00:53:38]

} {

[%emt 00:01:53]

} Qe7 {

[%clk 00:57:16]

} {

[%emt 00:02:31]

} 18. Nxc8 {

[%clk 00:53:00]

} {

[%emt 00:01:09]

} Kxc8 {

[%clk 00:57:24]

} {

[%emt 00:00:22]

} 19. Qc6+ {

[%clk 00:53:09]

} {

[%emt 00:00:21]

} Qc7 {

[%clk 00:57:40]

} {

[%emt 00:00:15]

} 20. Qxc7+ {

[%clk 00:53:26]

} {

[%emt 00:00:12]

} Kxc7 {

[%clk 00:58:04]

} {

[%emt 00:00:06]

} 21. Nd5+ {

[%clk 00:53:49]

} {

[%emt 00:00:07]

} Kd8 {

[%clk 00:58:04]

} {

[%emt 00:00:30]

} 22. O-O-O {

[%clk 00:54:07]

} {

[%emt 00:00:12]

} Bh6+ {

[%clk 00:58:08]

} {

[%emt 00:00:27]

} 23. Kb1 {

[%clk 00:54:28]

} {

[%emt 00:00:09]

} Ke8 {

[%clk 00:57:28]

} {

[%emt 00:01:10]

} 24. Nc7+ {

[%clk 00:54:24]

} {

[%emt 00:00:33]

} Kf8 {

[%clk 00:57:27]

} {

[%emt 00:00:32]

} 25. Rxd6 {

[%clk 00:54:35]

} {

[%emt 00:00:19]

} Kg7 {

[%clk 00:57:27]

} {

[%emt 00:00:29]

} 26. Nd5 {

[%clk 00:54:32]

} {

[%emt 00:00:34]

} Rf8 {

[%clk 00:57:13]

} {

[%emt 00:00:44]

} 27. Rd7 {

[%clk 00:54:49]

} {

[%emt 00:00:12]

} a5 {

[%clk 00:56:58]

} {

[%emt 00:00:43]

} 28. b3 {

[%clk 00:55:05]

} {

[%emt 00:00:16]

} Kh8 {

[%clk 00:54:56]

} {

[%emt 00:02:32]

} 29. Ra7 {

[%clk 00:54:55]

} {

[%emt 00:00:41]

} Bd2 {

[%clk 00:53:13]

} {

[%emt 00:02:12]

} 30. Rd1 {

[%clk 00:54:45]

} {

[%emt 00:00:40]

} Bb4 {

[%clk 00:53:35]

} {

[%emt 00:00:07]

} 31. Nxb4 {

[%clk 00:55:06]

} {

[%emt 00:00:11]

} axb4 {

[%clk 00:53:59]

} {

[%emt 00:00:06]

} 32. Rb7 {

[%clk 00:55:24]

} {

[%emt 00:00:11]

} Kg8 {

[%emt 00:01:02]

} 33. Rdd7 {

[%clk 00:54:57]

} {

[%emt 00:00:55]

} h5 {

[%clk 00:52:54]

} {

[%emt 00:01:03]

} 34. Rxb4 {

[%clk 00:55:16]

} {

[%emt 00:00:13]

} Re8 {

[%clk 00:52:05]

} {

[%emt 00:01:20]

} 35. Rbb7 {

[%clk 00:55:24]

} {

[%emt 00:00:22]

} Rf8 {

[%clk 00:52:28]

} {

[%emt 00:00:06]

} 36. a4 {

[%clk 00:55:36]

} {

[%emt 00:00:18]

} Kg7 {

[%clk 00:51:45]

} {

[%emt 00:01:13]

} 37. a5 {

[%clk 00:55:47]

} {

[%emt 00:00:19]

} Kg8 {

[%clk 00:52:05]

} {

[%emt 00:00:09]

} 38. a6 {

[%clk 00:56:07]

} {

[%emt 00:00:11]

} Kg7 {

[%clk 00:52:05]

} {

[%emt 00:00:30]

} 39. a7 {

[%clk 00:56:28]

} {

[%emt 00:00:09]

} Kf6 {

[%clk 00:51:59]

} {

[%emt 00:00:36]

} 40. Rb8 {

[%clk 00:56:45]

} {

[%emt 00:00:13]

} Rxb8 {

[%clk 00:51:56]

} {

[%emt 00:00:34]

} 41. axb8=Q {

[%clk 00:57:00]

} {

[%emt 00:00:14]

} Kg5 {

[%clk 00:52:10]

} {

[%emt 00:00:16]

} 42. Qxe5+ {

[%clk 00:57:16]

} {

[%emt 00:00:13]

} f5 {

[%clk 00:52:12]

} {

[%emt 00:00:28]

} 43. exf5 {

[%clk 00:57:34]

} {

[%emt 00:00:12]

} gxf5 {

[%clk 00:52:35]

} {

[%emt 00:00:07]

} 44. Rg7+ {

[%clk 00:57:50]

} {

[%emt 00:00:13]

} Kh4 {

[%clk 00:52:47]

} {

[%emt 00:00:18]

} 45. Qf6# {

[%clk 00:57:55]

} {

[%emt 00:00:26]

} 1-0